fUSD/lending_fUSD_20250127
["ID","MTS","AMOUNT","RATE_DAILY","PERIOD"]
[350573047,1737967848239,-500.0,0.00011204,2]
[350573048,1737967848249,-500.0,0.00011204,2]
[350573049,1737967848259,-500.0,0.00011204,2]
[350573050,1737967848270,-500.0,0.00011204,2]
[350573051,1737967848280,-500.0,0.00011204,2]
[350573052,1737967848290,-500.0,0.00011204,2]
[350573053,1737967848300,-500.0,0.00011204,2]
[350573054,1737967848310,-500.0,0.00011204,2]
[350573055,1737967848320,-500.0,0.00011204,2]
[350573056,1737967848330,-500.0,0.00011204,2]
[350573057,1737967848340,-500.0,0.00011204,2]
[350573058,1737967848350,-500.0,0.00011204,2]
[350573059,1737967848360,-500.0,0.00011204,2]
[350573060,1737967848370,-500.0,0.00011204,2]
[350573061,1737967848380,-500.0,0.00011204,2]
[350573062,1737967848390,-2802.88,0.00011204,2]
[350573063,1737967848400,-3809.79,0.00011204,2]
[350573064,1737967848409,-500.0,0.00011204,2]
[350573065,1737967848419,-5648.28,0.00011204,2]
[350573066,1737967848428,-500.0,0.00011204,2]
[350573067,1737967848438,-3278.57,0.00011204,2]
[350573068,1737967848450,-3002.04,0.00011204,2]
[350573069,1737967848461,-500.0,0.00011204,2]
[350573070,1737967848471,-500.0,0.00011204,2]
[350573071,1737967848481,-500.0,0.00011204,2]
[350573072,1737967848491,-500.0,0.00011204,2]
[350573073,1737967848501,-603.41,0.00011204,2]
[350573074,1737967848511,-500.0,0.00011204,2]
[350573075,1737967848521,-500.0,0.00011204,2]
[350573076,1737967848532,-500.0,0.00011204,2]
[350573077,1737967848542,-500.0,0.00011204,2]
[350573078,1737967848552,-500.0,0.00011204,2]
[350573079,1737967848562,-500.0,0.00011204,2]
[350573080,1737967848572,-500.0,0.00011204,2]
[350573081,1737967848583,-500.0,0.00011204,2]
[350573082,1737967848593,-500.0,0.00011204,2]
[350573083,1737967848604,-435.03334603,0.00011204,2]
[350573084,1737967848614,-500.0,0.00011204,2]
[350573085,1737967848624,-500.0,0.00011204,2]
[350573086,1737967848634,-500.0,0.00011204,2]
[350573087,1737967848644,-500.0,0.00011204,2]
[350573088,1737967848654,-500.0,0.00011204,2]
[350573089,1737967848664,-500.0,0.00011204,2]
[350573090,1737967848673,-500.0,0.00011204,2]
[350573091,1737967848685,-587.27,0.00011204,2]
[350573092,1737967848694,-751.86,0.00011204,2]
[350573093,1737967848705,-500.0,0.00011204,2]
[350573094,1737967848715,-500.0,0.00011204,2]
[350573095,1737967848725,-500.0,0.00011204,2]
[350573096,1737967848734,-4423.32578793,0.00011205,2]
[350573097,1737967848745,-8359.42168441,0.00011205,2]
[350573098,1737967848755,-173.6,0.00011238,2]
[350573099,1737967848764,-1000.0,0.00011238,2]
[350573100,1737967848775,-500.0,0.0001128,2]
[350573101,1737967848784,-500.0,0.0001128,2]
[350573102,1737967848794,-500.0,0.0001128,2]
[350573103,1737967848804,-500.0,0.0001128,2]
[350573104,1737967848814,-500.0,0.0001128,2]
[350573105,1737967848823,-520.27753322,0.0001128,2]
[350573106,1737967848833,-500.0,0.0001128,2]
[350573107,1737967848843,-500.0,0.0001128,2]
[350573108,1737967848853,-500.0,0.0001128,2]
[350573109,1737967848863,-500.0,0.0001128,2]
[350573110,1737967848873,-500.0,0.0001128,2]
[350573111,1737967848882,-500.0,0.0001128,2]
[350573112,1737967848892,-500.0,0.0001128,2]
[350573113,1737967848902,-500.0,0.0001128,2]
[350573114,1737967848913,-500.0,0.0001128,2]
[350573115,1737967848923,-500.0,0.0001128,2]
[350573116,1737967848934,-500.0,0.0001128,2]
[350573117,1737967848944,-500.0,0.0001128,2]
[350573118,1737967848953,-500.0,0.0001128,2]
[350573119,1737967848963,-926.2,0.0001128,2]
[350573120,1737967848973,-500.0,0.0001128,2]
[350573121,1737967848983,-500.0,0.0001128,2]
[350573122,1737967848993,-500.0,0.0001128,2]
[350573123,1737967849003,-500.0,0.0001128,2]
[350573124,1737967849012,-500.0,0.0001128,2]
[350573125,1737967849022,-500.0,0.0001128,2]
[350573126,1737967849033,-500.0,0.0001128,2]
[350573127,1737967849042,-500.0,0.0001128,2]
[350573128,1737967849052,-500.0,0.0001128,2]
[350573129,1737967849061,-185.00254982,0.0001128,2]
[350573130,1737967849071,-500.0,0.0001128,2]
[350573131,1737967849081,-500.0,0.0001128,2]
[350573132,1737967849090,-500.0,0.0001128,2]
[350573133,1737967849100,-500.0,0.0001128,2]
[350573134,1737967849109,-520.62,0.0001128,2]
[350573135,1737967849119,-500.0,0.0001128,2]
[350573136,1737967849128,-500.0,0.0001128,2]
[350573137,1737967849138,-500.0,0.0001128,2]
[350573138,1737967849147,-500.0,0.0001128,2]
[350573139,1737967849157,-500.0,0.0001128,2]
[350573140,1737967849166,-500.0,0.0001128,2]
[350573141,1737967849176,-500.0,0.0001128,2]
[350573142,1737967849187,-500.0,0.0001128,2]
[350573143,1737967849197,-500.0,0.0001128,2]
[350573144,1737967849207,-500.0,0.0001128,2]
[350573145,1737967849217,-503.94877579,0.0001128,2]
[350573146,1737967849227,-500.0,0.0001128,2]
[350573147,1737967849236,-500.0,0.0001128,2]
[350573148,1737967849246,-500.0,0.0001128,2]
[350573149,1737967849255,-500.0,0.0001128,2]
[350573150,1737967849265,-500.0,0.0001128,2]
[350573151,1737967849274,-500.0,0.0001128,2]
[350573152,1737967849284,-500.0,0.0001128,2]
[350573153,1737967849293,-500.0,0.0001128,2]
[350573154,1737967849302,-500.0,0.0001128,2]
[350573155,1737967849313,-500.0,0.0001128,2]
[350573156,1737967849322,-251.82601275,0.0001128,2]
[350573157,1737967849331,-500.0,0.0001128,2]
[350573158,1737967849341,-552.13,0.0001128,2]
[350573159,1737967849351,-500.0,0.0001128,2]
[350573160,1737967849360,-500.0,0.0001128,2]
[350573161,1737967849370,-500.0,0.0001128,2]
[350573162,1737967849380,-500.0,0.0001128,2]
[350573163,1737967849390,-500.0,0.0001128,2]
[350573164,1737967849399,-500.0,0.0001128,2]
[350573165,1737967849409,-500.0,0.0001128,2]
[350573166,1737967849419,-500.0,0.0001128,2]
[350573167,1737967849429,-500.0,0.0001128,2]
[350573168,1737967849439,-500.0,0.0001128,2]
[350573169,1737967849451,-500.0,0.0001128,2]
[350573170,1737967849463,-500.0,0.0001128,2]
[350573171,1737967849472,-500.0,0.0001128,2]
[350573172,1737967849481,-500.0,0.0001128,2]
[350573173,1737967849492,-500.0,0.0001128,2]
[350573174,1737967849502,-500.0,0.0001128,2]
[350573175,1737967849512,-500.0,0.0001128,2]
[350573176,1737967849521,-500.0,0.0001128,2]
[350573177,1737967849532,-500.0,0.0001128,2]
[350573178,1737967849542,-418.9195637,0.0001128,2]
[350573179,1737967849551,-500.0,0.0001128,2]
[350573180,1737967849561,-314.008464,0.0001128,2]
[350573181,1737967849571,-505.52755544,0.0001128,7]
[350573182,1737967849579,-500.0,0.0001128,2]
[350573183,1737967849589,-500.0,0.0001128,2]
[350573184,1737967849598,-500.0,0.0001128,2]
[350573185,1737967849609,-500.0,0.0001128,2]
[350573186,1737967849618,-500.0,0.0001128,2]
[350573187,1737967849628,-500.0,0.0001128,2]
[350573188,1737967849637,-500.0,0.0001128,2]
[350573189,1737967849647,-500.0,0.0001128,2]
[350573190,1737967849656,-500.0,0.0001128,2]
[350573191,1737967849665,-500.0,0.0001128,2]
[350573192,1737967849675,-500.0,0.0001128,2]
[350573193,1737967849686,-500.0,0.0001128,2]
[350573194,1737967849695,-500.0,0.0001128,2]
[350573195,1737967849705,-617.37,0.0001128,2]
[350573196,1737967849716,-500.0,0.0001128,2]
[350573197,1737967849726,-500.0,0.0001128,2]
[350573198,1737967849735,-500.0,0.0001128,2]
[350573199,1737967849745,-549.43,0.0001128,2]
[350573200,1737967849755,-500.0,0.0001128,2]
[350573201,1737967849764,-500.0,0.0001128,2]
[350573202,1737967849774,-99376.06852431,0.0001132,2]
[350573203,1737967849783,-4423.32578793,0.00011321,2]
[350573204,1737967849794,-8359.42168441,0.00011321,2]
[350573205,1737967849804,-180.19476858,0.00011379,2]
[350573206,1737967849814,-502.0,0.00011397,2]
[350573207,1737967849824,-1200.0,0.000114,4]
[350573208,1737967849834,-370.86,0.00011422,2]
[350573209,1737967849844,-4423.32578793,0.00011436,2]
[350573210,1737967849853,-8359.42168441,0.00011437,2]
[350573211,1737967849863,-300.87,0.00011482,2]
[350573212,1737967849872,-298.28,0.00011482,2]
[350573213,1737967850054,-983.1,0.00011482,2]
[350573214,1737967850064,-300.37,0.00011482,2]
[350573215,1737967850073,-150.0,0.00011482,2]
[350573217,1737967850083,-438.0,0.00011482,2]
[350573218,1737967850092,-438.12,0.00011482,2]
[350573221,1737967850101,-150.0,0.00011482,2]
[350573223,1737967850111,-150.0,0.00011482,2]
[350573225,1737967850121,-438.12,0.00011482,2]
[350573227,1737967850130,-438.12,0.00011482,2]
[350573229,1737967850140,-150.0,0.00011482,2]
[350573231,1737967850149,-237.6,0.00011482,2]
[350573233,1737967850158,-259.99,0.00011482,2]
[350573235,1737967850167,-150.0,0.00011482,2]
[350573237,1737967850176,-150.0,0.00011482,2]
[350573239,1737967850189,-983.1,0.00011482,2]
[350573241,1737967850198,-150.0,0.00011482,2]
[350573243,1737967850207,-150.0,0.00011482,2]
[350573245,1737967850216,-150.0,0.00011482,2]
[350573247,1737967850225,-983.1,0.00011482,2]
[350573249,1737967850234,-983.1,0.00011482,2]
[350573251,1737967850243,-206.86,0.00011482,2]
[350573253,1737967850252,-303.21,0.00011482,2]
[350573255,1737967850261,-150.0,0.00011482,2]
[350573257,1737967850270,-981.5,0.00011482,2]
[350573259,1737967850279,-300.0,0.00011482,2]
[350573261,1737967850288,-150.0,0.00011482,2]
[350573262,1737967850297,-298.28,0.00011482,2]
[350573264,1737967850306,-298.28,0.00011482,2]
[350573266,1737967850315,-298.28,0.00011482,2]
[350573268,1737967850324,-297.88,0.00011482,2]
[350573270,1737967850333,-1600.0,0.000115,4]
[350573272,1737967850343,-550.26516278,0.00011532,2]
[350573274,1737967850352,-502.59,0.00011541,2]
[350573276,1737967850362,-202.90737996,0.00011541,2]
[350573278,1737967850371,-500.0,0.00011542,2]
[350573280,1737967850381,-500.0,0.00011542,2]
[350573282,1737967850390,-500.0,0.00011542,2]
[350573284,1737967850399,-500.0,0.00011542,2]
[350573287,1737967850409,-500.0,0.00011542,2]
[350573289,1737967850418,-500.0,0.00011542,2]
[350573291,1737967850428,-608.98,0.00011542,2]
[350573293,1737967850438,-500.0,0.00011542,2]
[350573295,1737967850449,-904.45,0.00011542,2]
[350573297,1737967850460,-500.0,0.00011542,2]
[350573299,1737967850469,-751.3,0.00011542,2]
[350573300,1737967850478,-1489.91,0.00011542,2]
[350573302,1737967850489,-500.0,0.00011542,2]
[350573304,1737967850498,-875.95,0.00011542,2]
[350573306,1737967850507,-553.83,0.00011542,2]
[350573308,1737967850516,-647.79,0.00011542,2]
[350573311,1737967850526,-2601.39,0.00011542,2]
[350573312,1737967850535,-500.0,0.00011542,2]
[350573314,1737967850544,-500.0,0.00011542,2]
[350573316,1737967850553,-786.19,0.00011542,2]
[350573317,1737967850562,-500.0,0.00011542,2]
[350573318,1737967850571,-500.0,0.00011542,2]
[350573319,1737967850579,-500.0,0.00011542,2]
[350573320,1737967850588,-500.0,0.00011542,2]
[350573321,1737967850597,-500.0,0.00011542,2]
[350573322,1737967850606,-2446.14,0.00011542,2]
[350573323,1737967850615,-1000.0,0.00011543,2]
[350573324,1737967850626,-4423.32578793,0.00011552,2]
[350573325,1737967850638,-8359.42168441,0.00011553,2]
[350573326,1737967850647,-2000.0,0.000116,4]
[350573327,1737967850659,-192.3134371,0.00011667,2]
[350573328,1737967850670,-4423.32578793,0.00011668,2]
[350573329,1737967850680,-8359.42168441,0.00011668,2]
[350573330,1737967850689,-400.0,0.000117,4]
[350573331,1737967850699,-422.31541529,0.00011752,2]
[350573332,1737967850708,-311.412257,0.0001176,2]
[350573334,1737967850717,-500.0,0.00011767,2]
[350573336,1737967850726,-500.0,0.00011767,2]
[350573338,1737967850735,-500.0,0.00011767,2]
[350573339,1737967850745,-500.0,0.00011767,2]
[350573340,1737967850753,-500.0,0.00011767,2]
[350573341,1737967850761,-500.52003914,0.00011767,2]
[350573342,1737967850770,-574.36117904,0.00011767,2]
[350573343,1737967850779,-255.86453118,0.00011767,2]
[350573344,1737967850788,-150.613826,0.00011767,2]
[350573345,1737967850797,-500.0,0.00011767,2]
[350573346,1737967850806,-500.0,0.00011767,2]
[350573347,1737967850815,-4833.0,0.00011767,2]
[350573349,1737967850824,-500.0,0.00011767,2]
[350573351,1737967850832,-1542.58,0.00011767,2]
[350573353,1737967850841,-220.609739,0.00011767,2]
[350573355,1737967850850,-1073.31,0.00011767,2]
[350573357,1737967850860,-500.0,0.00011767,2]
[350573358,1737967850869,-693.41,0.00011767,2]
[350573360,1737967850878,-500.0,0.00011767,2]
[350573362,1737967850887,-500.0,0.00011767,2]
[350573365,1737967850897,-598.33,0.00011767,2]
[350573366,1737967850906,-176.93316588,0.00011767,2]
[350573368,1737967850915,-500.0,0.00011767,2]
[350573371,1737967850927,-500.0,0.00011767,2]
[350573372,1737967850940,-500.0,0.00011767,2]
[350573374,1737967850949,-500.0,0.00011767,2]
[350573376,1737967850958,-500.0,0.00011767,2]
[350573379,1737967850968,-500.0,0.00011767,2]
[350573380,1737967850977,-500.0,0.00011767,2]
[350573382,1737967850987,-500.0,0.00011767,2]
[350573384,1737967850997,-500.0,0.00011767,2]
[350573386,1737967851007,-500.0,0.00011767,2]
[350573389,1737967851021,-822.61,0.00011767,2]
[350573391,1737967851031,-500.0,0.00011767,2]
[350573393,1737967851040,-450.14489362,0.00011767,2]
[350573395,1737967851049,-298.7782952,0.00011767,2]
[350573397,1737967851058,-500.0,0.00011767,2]
[350573399,1737967851067,-500.0,0.00011767,2]
[350573400,1737967851077,-500.0,0.00011767,2]
[350573402,1737967851086,-500.0,0.00011767,2]
[350573405,1737967851095,-500.0,0.00011767,2]
[350573407,1737967851104,-500.0,0.00011767,2]
[350573409,1737967851113,-500.0,0.00011767,2]
[350573411,1737967851122,-500.0,0.00011767,2]
[350573412,1737967851131,-500.0,0.00011767,2]
[350573414,1737967851140,-500.0,0.00011767,2]
[350573417,1737967851150,-500.0,0.00011767,2]
[350573418,1737967851159,-638.87,0.00011767,2]
[350573420,1737967851168,-500.0,0.00011767,2]
[350573422,1737967851177,-500.0,0.00011767,2]
[350573424,1737967851189,-500.0,0.00011767,2]
[350573426,1737967851198,-500.0,0.00011767,2]
[350573428,1737967851207,-588.58324873,0.00011767,2]
[350573430,1737967851217,-500.0,0.00011767,2]
[350573433,1737967851226,-500.0,0.00011767,2]
[350573434,1737967851235,-500.0,0.00011767,2]
[350573437,1737967851245,-162.84738116,0.00011767,2]
[350573439,1737967851254,-500.0,0.00011767,2]
[350573441,1737967851263,-500.0,0.00011767,2]
[350573442,1737967851272,-500.0,0.00011767,2]
[350573445,1737967851282,-914.17,0.00011767,2]
[350573446,1737967851291,-1274.81,0.00011768,2]
[350573448,1737967851300,-2032.543,0.00011768,2]
[350573450,1737967851308,-884.923,0.00011768,2]
[350573452,1737967851317,-3905.0,0.00011768,2]
[350573454,1737967851326,-151.166,0.00011768,2]
[350573456,1737967851335,-236.09779688,0.00011774,2]
[350573458,1737967851344,-4423.32578793,0.00011783,2]
[350573460,1737967851354,-8359.42168441,0.00011784,2]
[350573462,1737967851363,-400.0,0.000118,4]
[350573464,1737967851372,-250.0,0.00011807,2]
[350573466,1737967851381,-9768.78336999,0.00011818,2]
[350573468,1737967851391,-292.84586395,0.00011829,2]
[350573470,1737967851400,-980.5736255,0.00011832,2]
[350573472,1737967851409,-200.0,0.00011833,2]
[350573474,1737967851418,-200.0,0.00011835,2]
[350573476,1737967851427,-1900.67270404,0.00011839,2]
[350573478,1737967851438,-10906.27319976,0.00011842,2]
[350573480,1737967851449,-292.84586395,0.00011842,2]
[350573483,1737967851461,-3801.34540807,0.00011842,2]
[350573485,1737967851470,-787.3580558,0.00011843,2]
[350573487,1737967851479,-10906.27319976,0.00011845,2]
[350573489,1737967851489,-787.3580558,0.00011846,2]
[350573491,1737967851498,-10906.27319976,0.00011849,2]
[350573493,1737967851507,-1900.67270404,0.00011849,2]
[350573494,1737967851516,-236.09779683,0.0001185,2]
[350573496,1737967851527,-244.91483507,0.00011851,2]
[350573498,1737967851536,-1277.90248677,0.00011851,2]
[350573501,1737967851545,-244.91483507,0.00011852,2]
[350573503,1737967851555,-200.0,0.00011853,2]
[350573505,1737967851564,-200.0,0.00011856,2]
[350573507,1737967851573,-200.0,0.00011856,2]
[350573509,1737967851582,-3801.34540807,0.00011856,2]
[350573511,1737967851591,-669.673437,0.0001186,2]
[350573513,1737967851600,-3801.34540807,0.00011861,2]
[350573514,1737967851609,-669.673437,0.00011863,2]
[350573516,1737967851618,-1277.90248677,0.00011863,2]
[350573518,1737967851627,-200.0,0.00011865,2]
[350573520,1737967851636,-244.91483507,0.00011866,2]
[350573522,1737967851645,-787.3580558,0.00011867,2]
[350573524,1737967851654,-980.5736255,0.00011869,2]
[350573526,1737967851663,-200.0,0.0001187,2]
[350573528,1737967851672,-200.0,0.0001187,2]
[350573530,1737967851682,-10906.27319976,0.0001187,2]
[350573532,1737967851691,-292.84586395,0.00011872,2]
[350573534,1737967851701,-641.52058968,0.00011873,2]
[350573536,1737967851710,-669.673437,0.00011874,2]
[350573538,1737967851719,-500.0,0.00011874,2]
[350573540,1737967851728,-500.0,0.00011874,2]
[350573542,1737967851737,-500.0,0.00011874,2]
[350573544,1737967851746,-500.0,0.00011874,2]
[350573546,1737967851755,-500.0,0.00011874,2]
[350573548,1737967851765,-500.0,0.00011874,2]
[350573550,1737967851774,-500.0,0.00011874,2]
[350573551,1737967851783,-500.0,0.00011874,2]
[350573553,1737967851792,-500.0,0.00011874,2]
[350573555,1737967851801,-500.0,0.00011874,2]
[350573557,1737967851810,-502.60881132,0.00011874,2]
[350573559,1737967851819,-500.0,0.00011874,2]
[350573560,1737967851828,-500.0,0.00011874,2]
[350573561,1737967851837,-500.0,0.00011874,2]
[350573562,1737967851846,-500.0,0.00011874,2]
[350573563,1737967851855,-500.0,0.00011874,2]
[350573564,1737967851863,-500.0,0.00011874,2]
[350573565,1737967851873,-500.0,0.00011874,2]
[350573566,1737967851882,-500.0,0.00011874,2]
[350573567,1737967851892,-500.0,0.00011874,2]
[350573568,1737967851901,-500.0,0.00011874,2]
[350573569,1737967851911,-500.0,0.00011874,2]
[350573570,1737967851920,-500.0,0.00011874,2]
[350573571,1737967851930,-500.0,0.00011874,2]
[350573572,1737967851940,-500.0,0.00011874,2]
[350573573,1737967851950,-500.0,0.00011874,2]
[350573574,1737967851959,-500.0,0.00011874,2]
[350573575,1737967851969,-500.0,0.00011874,2]
[350573576,1737967851978,-500.0,0.00011874,2]
[350573577,1737967851987,-500.0,0.00011874,2]
[350573578,1737967851996,-500.0,0.00011874,2]
[350573579,1737967852005,-500.0,0.00011874,2]
[350573580,1737967852015,-500.0,0.00011874,2]
[350573581,1737967852024,-500.0,0.00011874,2]
[350573582,1737967852033,-500.0,0.00011874,2]
[350573583,1737967852042,-500.0,0.00011874,2]
[350573584,1737967852052,-500.0,0.00011874,2]
[350573585,1737967852061,-500.0,0.00011874,2]
[350573586,1737967852070,-519.47313621,0.00011874,2]
[350573587,1737967852080,-500.0,0.00011874,2]
[350573588,1737967852090,-500.0,0.00011874,2]
[350573589,1737967852099,-500.0,0.00011874,2]
[350573590,1737967852109,-500.0,0.00011874,2]
[350573591,1737967852118,-500.0,0.00011874,2]
[350573592,1737967852128,-500.0,0.00011874,2]
[350573593,1737967852137,-500.0,0.00011874,2]
[350573594,1737967852147,-500.0,0.00011874,2]
[350573595,1737967852156,-500.0,0.00011874,2]
[350573596,1737967852166,-500.0,0.00011874,2]
[350573597,1737967852176,-500.0,0.00011874,2]
[350573598,1737967852187,-500.0,0.00011874,2]
[350573599,1737967852196,-500.0,0.00011874,2]
[350573600,1737967852205,-500.0,0.00011874,2]
[350573602,1737967852215,-500.0,0.00011874,2]
[350573604,1737967852224,-500.0,0.00011874,2]
[350573606,1737967852233,-500.0,0.00011874,2]
[350573608,1737967852241,-500.0,0.00011874,2]
[350573610,1737967852250,-500.0,0.00011874,2]
[350573612,1737967852259,-500.0,0.00011874,2]
[350573614,1737967852268,-500.0,0.00011874,2]
[350573616,1737967852277,-500.0,0.00011874,2]
[350573618,1737967852286,-500.0,0.00011874,2]
[350573620,1737967852295,-500.0,0.00011874,2]
[350573622,1737967852304,-500.0,0.00011874,2]
[350573624,1737967852313,-500.0,0.00011874,2]
[350573626,1737967852322,-500.0,0.00011874,2]
[350573628,1737967852331,-500.0,0.00011874,2]
[350573630,1737967852340,-500.0,0.00011874,2]
[350573632,1737967852350,-500.0,0.00011874,2]
[350573634,1737967852358,-500.0,0.00011874,2]
[350573636,1737967852367,-500.0,0.00011874,2]
[350573638,1737967852376,-500.0,0.00011874,2]
[350573639,1737967852385,-500.0,0.00011874,2]
[350573641,1737967852394,-500.0,0.00011874,2]
[350573644,1737967852403,-500.0,0.00011874,2]
[350573658,1737967852537,-500.0,0.00011874,2]
[350573660,1737967852546,-500.0,0.00011874,2]
[350573663,1737967852558,-500.0,0.00011874,2]
[350573665,1737967852568,-500.0,0.00011874,2]
[350573667,1737967852577,-500.0,0.00011874,2]
[350573669,1737967852586,-500.0,0.00011874,2]
[350573671,1737967852595,-500.0,0.00011874,2]
[350573673,1737967852604,-500.0,0.00011874,2]
[350573675,1737967852613,-500.0,0.00011874,2]
[350573677,1737967852622,-6117.13,0.00011874,2]
[350573679,1737967852631,-500.0,0.00011874,2]
[350573680,1737967852640,-500.0,0.00011874,2]
[350573681,1737967852649,-500.0,0.00011874,2]
[350573682,1737967852657,-500.0,0.00011874,2]
[350573683,1737967852666,-500.0,0.00011874,2]
[350573684,1737967852675,-500.0,0.00011874,2]
[350573685,1737967852685,-831.32,0.00011874,2]
[350573686,1737967852693,-500.0,0.00011874,2]
[350573687,1737967852702,-2802.88,0.00011874,2]
[350573688,1737967852711,-500.0,0.00011874,2]
[350573690,1737967852720,-500.0,0.00011874,2]
[350573692,1737967852730,-500.0,0.00011874,2]
[350573694,1737967852739,-500.0,0.00011874,2]
[350573696,1737967852748,-3809.79,0.00011874,2]
[350573698,1737967852757,-500.0,0.00011874,2]
[350573700,1737967852766,-509.93459213,0.00011874,2]
[350573702,1737967852775,-5648.28,0.00011874,2]
[350573704,1737967852784,-500.0,0.00011874,2]
[350573706,1737967852793,-500.0,0.00011874,2]
[350573708,1737967852802,-500.0,0.00011874,2]
[350573710,1737967852811,-500.0,0.00011874,2]
[350573712,1737967852821,-3278.57,0.00011874,2]
[350573714,1737967852830,-500.0,0.00011874,2]
[350573716,1737967852839,-3002.04,0.00011874,2]
[350573718,1737967852848,-500.0,0.00011874,2]
[350573720,1737967852858,-500.0,0.00011874,2]
[350573722,1737967852867,-500.0,0.00011874,2]
[350573724,1737967852876,-500.0,0.00011874,2]
[350573726,1737967852885,-500.0,0.00011874,2]
[350573728,1737967852895,-500.0,0.00011874,2]
[350573730,1737967852904,-500.0,0.00011874,2]
[350573732,1737967852913,-500.0,0.00011874,2]
[350573734,1737967852922,-500.0,0.00011874,2]
[350573735,1737967852930,-603.41,0.00011874,2]
[350573737,1737967852942,-589.56,0.00011874,2]
[350573739,1737967852951,-810.92,0.00011874,2]
[350573741,1737967852960,-500.0,0.00011874,2]
[350573743,1737967852969,-500.0,0.00011874,2]
[350573745,1737967852978,-500.0,0.00011874,2]
[350573747,1737967852987,-500.0,0.00011874,2]
[350573749,1737967852996,-500.0,0.00011874,2]
[350573751,1737967853005,-336.98008932,0.00011874,2]
[350573753,1737967853014,-500.0,0.00011874,2]
[350573755,1737967853023,-500.0,0.00011874,2]
[350573757,1737967853032,-500.0,0.00011874,2]
[350573759,1737967853041,-500.0,0.00011874,2]
[350573761,1737967853050,-333.33,0.00011874,2]
[350573763,1737967853060,-500.0,0.00011874,2]
[350573765,1737967853069,-500.0,0.00011874,2]
[350573767,1737967853078,-500.0,0.00011874,2]
[350573769,1737967853087,-500.0,0.00011874,2]
[350573771,1737967853096,-500.0,0.00011874,2]
[350573773,1737967853104,-500.0,0.00011874,2]
[350573775,1737967853114,-500.0,0.00011874,2]
[350573777,1737967853123,-500.0,0.00011874,2]
[350573779,1737967853132,-500.0,0.00011874,2]
[350573781,1737967853141,-500.0,0.00011874,2]
[350573783,1737967853150,-500.0,0.00011874,2]
[350573785,1737967853159,-500.0,0.00011874,2]
[350573787,1737967853168,-500.0,0.00011874,2]
[350573789,1737967853177,-500.0,0.00011874,2]
[350573791,1737967853187,-500.0,0.00011874,2]
[350573793,1737967853196,-500.0,0.00011874,2]
[350573795,1737967853206,-500.0,0.00011874,2]
[350573797,1737967853215,-500.0,0.00011874,2]
[350573799,1737967853224,-500.0,0.00011874,2]
[350573801,1737967853233,-587.27,0.00011874,2]
[350573803,1737967853243,-500.0,0.00011874,2]
[350573805,1737967853252,-500.0,0.00011874,2]
[350573807,1737967853261,-751.86,0.00011874,2]
[350573809,1737967853270,-515.46,0.00011874,2]
[350573811,1737967853280,-500.0,0.00011874,2]